[Event "Early-Titled-Tuesday-Blitz-March-05-2024"]
[Site "Chess.com"]
[Date "2024.03.05"]
[Round "11"]
[White "Szachulec75"]
[Black "emeli_chess"]
[Result "0-1"]
[WhiteElo "2241"]
[BlackElo "2426"]
[TimeControl "180+1"]
[EndTime "10:09:11 PST"]
[Termination "emeli_chess won by resignation"]

1. Nf3 {[%clk 0:02:30.7]} 1... f5 {[%clk 0:02:59.3]} 2. g3 {[%clk 0:02:23]} 2...
Nf6 {[%clk 0:02:58.9]} 3. Bg2 {[%clk 0:02:23.5]} 3... d6 {[%clk 0:02:58.6]} 4.
d3 {[%clk 0:02:24.4]} 4... e5 {[%clk 0:02:58.4]} 5. O-O {[%clk 0:02:25.3]} 5...
Be7 {[%clk 0:02:56.6]} 6. Nbd2 {[%clk 0:02:26.2]} 6... O-O {[%clk 0:02:55.8]} 7.
c4 {[%clk 0:02:27.1]} 7... c6 {[%clk 0:02:52.7]} 8. Rb1 {[%clk 0:02:28]} 8...
Kh8 {[%clk 0:02:42.3]} 9. b4 {[%clk 0:02:28.9]} 9... Be6 {[%clk 0:02:37.8]} 10.
b5 {[%clk 0:02:28.3]} 10... Nbd7 {[%clk 0:02:34]} 11. bxc6 {[%clk 0:02:27]}
11... bxc6 {[%clk 0:02:33.9]} 12. Qa4 {[%clk 0:02:23]} 12... Qc7 {[%clk
0:02:29.8]} 13. Ba3 {[%clk 0:02:20.3]} 13... Nc5 {[%clk 0:02:13.9]} 14. Bxc5
{[%clk 0:02:19.1]} 14... dxc5 {[%clk 0:02:14.1]} 15. Qa6 {[%clk 0:02:10.6]}
15... Rab8 {[%clk 0:02:07.8]} 16. Rxb8 {[%clk 0:02:10]} 16... Rxb8 {[%clk
0:02:06.9]} 17. Rb1 {[%clk 0:02:10.9]} 17... Rb6 {[%clk 0:02:02.7]} 18. Qa4
{[%clk 0:02:01.4]} 18... Bd6 {[%clk 0:01:55.7]} 19. Rb3 {[%clk 0:01:57.9]} 19...
h6 {[%clk 0:01:51.7]} 20. Nh4 {[%clk 0:01:43.4]} 20... g5 {[%clk 0:01:42.8]} 21.
Nhf3 {[%clk 0:01:37]} 21... Kg7 {[%clk 0:01:39.4]} 22. h3 {[%clk 0:01:34]} 22...
e4 {[%clk 0:01:30.9]} 23. Ne1 {[%clk 0:01:33.2]} 23... e3 {[%clk 0:01:28.4]} 24.
Nf1 {[%clk 0:01:28.1]} 24... exf2+ {[%clk 0:01:08.8]} 25. Kxf2 {[%clk
0:01:27.1]} 25... f4 {[%clk 0:01:07.9]} 26. Rxb6 {[%clk 0:01:17.4]} 26... axb6
{[%clk 0:01:07.3]} 27. Qxc6 {[%clk 0:01:16.5]} 27... Qxc6 {[%clk 0:01:07.3]} 28.
Bxc6 {[%clk 0:01:15.5]} 28... Bxh3 {[%clk 0:01:07.4]} 29. gxf4 {[%clk 0:01:12]}
29... Bxf4 {[%clk 0:01:05.6]} 30. Ng3 {[%clk 0:00:37.8]} 30... Bc7 {[%clk
0:00:58.1]} 31. Bg2 {[%clk 0:00:32.6]} 31... Bd7 {[%clk 0:00:56.3]} 32. Ne4
{[%clk 0:00:25.4]} 32... Nxe4+ {[%clk 0:00:55.7]} 33. Bxe4 {[%clk 0:00:24.5]}
33... h5 {[%clk 0:00:55.3]} 34. Kg2 {[%clk 0:00:23.6]} 34... h4 {[%clk
0:00:53.4]} 35. Nc2 {[%clk 0:00:21.1]} 35... g4 {[%clk 0:00:50.4]} 36. Ne3
{[%clk 0:00:21.1]} 36... h3+ {[%clk 0:00:49.7]} 37. Kh1 {[%clk 0:00:18.2]} 37...
Kf6 {[%clk 0:00:50]} 38. Nd5+ {[%clk 0:00:16.7]} 38... Kg5 {[%clk 0:00:49.9]}
39. Nxc7 {[%clk 0:00:17.6]} 39... Kf4 {[%clk 0:00:46]} 40. Nd5+ {[%clk
0:00:17.8]} 40... Kg3 {[%clk 0:00:45]} 41. Nxb6 {[%clk 0:00:16.8]} 41... Be6
{[%clk 0:00:40]} 42. Na4 {[%clk 0:00:16.9]} 42... Kf2 {[%clk 0:00:38.1]} 43.
Nxc5 {[%clk 0:00:15.4]} 43... g3 {[%clk 0:00:38.3]} 44. a4 {[%clk 0:00:13.2]}
44... g2+ {[%clk 0:00:38.2]} 45. Bxg2 {[%clk 0:00:10.3]} 45... hxg2+ {[%clk
0:00:38.4]} 0-1

[Event "Early-Titled-Tuesday-Blitz-March-05-2024"]
[Site "Chess.com"]
[Date "2024.03.05"]
[Round "11"]
[White "Mesa_1"]
[Black "Austen48"]
[Result "0-1"]
[WhiteElo "2479"]
[BlackElo "2325"]
[TimeControl "180+1"]
[EndTime "10:09:13 PST"]
[Termination "Austen48 won on time"]

1. e4 {[%clk 0:02:55.3]} 1... c5 {[%clk 0:02:59.1]} 2. Nf3 {[%clk 0:02:51.4]}
2... e6 {[%clk 0:02:59]} 3. d4 {[%clk 0:02:51.9]} 3... cxd4 {[%clk 0:02:59.2]}
4. Nxd4 {[%clk 0:02:52.3]} 4... a6 {[%clk 0:02:59.7]} 5. c4 {[%clk 0:02:51.9]}
5... Nf6 {[%clk 0:02:59.3]} 6. Nc3 {[%clk 0:02:51.5]} 6... Qc7 {[%clk
0:02:59.8]} 7. a3 {[%clk 0:02:50.4]} 7... b6 {[%clk 0:02:59.3]} 8. Be3 {[%clk
0:02:48.5]} 8... Bb7 {[%clk 0:02:59.1]} 9. f3 {[%clk 0:02:48.8]} 9... d6 {[%clk
0:02:57.2]} 10. Be2 {[%clk 0:02:48.4]} 10... Nbd7 {[%clk 0:02:57.8]} 11. g4
{[%clk 0:02:44.3]} 11... Ne5 {[%clk 0:02:39.5]} 12. g5 {[%clk 0:02:43.4]} 12...
Nfd7 {[%clk 0:02:38.3]} 13. Rc1 {[%clk 0:02:40.3]} 13... Be7 {[%clk 0:02:36.2]}
14. f4 {[%clk 0:02:35.1]} 14... Ng6 {[%clk 0:02:15]} 15. h4 {[%clk 0:02:32.1]}
15... h6 {[%clk 0:02:02.8]} 16. f5 {[%clk 0:02:15.2]} 16... e5 {[%clk
0:01:52.6]} 17. Nd5 {[%clk 0:02:07.8]} 17... Bxd5 {[%clk 0:01:50.3]} 18. cxd5
{[%clk 0:02:08.7]} 18... Nc5 {[%clk 0:01:04.3]} 19. fxg6 {[%clk 0:02:09]} 19...
exd4 {[%clk 0:01:03.4]} 20. Bxd4 {[%clk 0:02:01.9]} 20... hxg5 {[%clk
0:01:01.5]} 21. b4 {[%clk 0:01:56.9]} 21... gxh4 {[%clk 0:00:55.3]} 22. gxf7+
{[%clk 0:01:54.6]} 22... Kxf7 {[%clk 0:00:55]} 23. bxc5 {[%clk 0:01:54.7]} 23...
dxc5 {[%clk 0:00:53.8]} 24. d6 {[%clk 0:01:44.7]} 24... Bxd6 {[%clk 0:00:49.9]}
25. O-O+ {[%clk 0:01:38.1]} 25... Kg6 {[%clk 0:00:39.9]} 26. e5 {[%clk
0:01:34.2]} 26... Bxe5 {[%clk 0:00:29]} 27. Bd3+ {[%clk 0:01:17.5]} 27... Kh6
{[%clk 0:00:20.5]} 28. Qg4 {[%clk 0:01:18.1]} 28... Bxd4+ {[%clk 0:00:19.2]} 29.
Kh1 {[%clk 0:01:17.1]} 29... Qg3 {[%clk 0:00:18.3]} 30. Qe6+ {[%clk 0:01:12.4]}
30... g6 {[%clk 0:00:17.4]} 31. Bb1 {[%clk 0:00:32.7]} 31... Rae8 {[%clk
0:00:17.8]} 32. Qd7 {[%clk 0:00:32.6]} 32... Re2 {[%clk 0:00:16.5]} 0-1

[Event "Early-Titled-Tuesday-Blitz-March-05-2024"]
[Site "Chess.com"]
[Date "2024.03.05"]
[Round "11"]
[White "Herman-NY"]
[Black "IlanSchnaider"]
[Result "1-0"]
[WhiteElo "2553"]
[BlackElo "2645"]
[TimeControl "180+1"]
[EndTime "10:09:21 PST"]
[Termination "Herman-NY won on time"]

1. e4 {[%clk 0:03:00.9]} 1... c5 {[%clk 0:02:59]} 2. Nf3 {[%clk 0:03:01.3]} 2...
d6 {[%clk 0:02:58.7]} 3. d4 {[%clk 0:03:01.5]} 3... cxd4 {[%clk 0:02:59.6]} 4.
Nxd4 {[%clk 0:03:02.3]} 4... Nf6 {[%clk 0:02:59.3]} 5. Nc3 {[%clk 0:03:03]} 5...
a6 {[%clk 0:02:56]} 6. Bc4 {[%clk 0:03:03.2]} 6... e6 {[%clk 0:02:51]} 7. a3
{[%clk 0:03:03.6]} 7... b5 {[%clk 0:02:48.7]} 8. Ba2 {[%clk 0:03:03.9]} 8... Be7
{[%clk 0:02:45.4]} 9. Qe2 {[%clk 0:03:04]} 9... O-O {[%clk 0:02:43.6]} 10. g4
{[%clk 0:03:01.8]} 10... Qc7 {[%clk 0:01:49.2]} 11. g5 {[%clk 0:03:01.8]} 11...
Nfd7 {[%clk 0:01:48.9]} 12. h4 {[%clk 0:02:46.5]} 12... Nc6 {[%clk 0:01:46.9]}
13. Be3 {[%clk 0:02:44.2]} 13... Nc5 {[%clk 0:01:30]} 14. O-O-O {[%clk
0:02:34.5]} 14... b4 {[%clk 0:01:24.7]} 15. Nxc6 {[%clk 0:02:28.3]} 15... bxc3
{[%clk 0:01:23.4]} 16. Nxe7+ {[%clk 0:02:28.6]} 16... Qxe7 {[%clk 0:01:21.6]}
17. b4 {[%clk 0:02:21.5]} 17... Nxe4 {[%clk 0:01:19]} 18. Bd4 {[%clk 0:02:15]}
18... Bb7 {[%clk 0:01:16.3]} 19. g6 {[%clk 0:01:52.9]} 19... hxg6 {[%clk
0:00:55.7]} 20. h5 {[%clk 0:01:53]} 20... Bd5 {[%clk 0:00:18.9]} 21. Bxd5 {[%clk
0:01:12]} 21... exd5 {[%clk 0:00:19.8]} 22. h6 {[%clk 0:01:01.2]} 22... f6
{[%clk 0:00:10.4]} 23. f3 {[%clk 0:00:47.2]} 23... a5 {[%clk 0:00:10.6]} 24. b5
{[%clk 0:00:45.7]} 24... Qf7 {[%clk 0:00:07.6]} 25. fxe4 {[%clk 0:00:32.4]}
25... dxe4 {[%clk 0:00:08.5]} 26. Qxe4 {[%clk 0:00:30]} 26... Rac8 {[%clk
0:00:06.2]} 27. hxg7 {[%clk 0:00:15.3]} 27... Kxg7 {[%clk 0:00:07.1]} 28. Rdg1
{[%clk 0:00:07.4]} 28... Rh8 {[%clk 0:00:05.7]} 29. Rxh8 {[%clk 0:00:06.6]}
29... Rxh8 {[%clk 0:00:06.6]} 30. Bxc3 {[%clk 0:00:04.7]} 30... Rh6 {[%clk
0:00:04.4]} 31. b6 {[%clk 0:00:03.9]} 31... d5 {[%clk 0:00:03.2]} 32. Qd4 {[%clk
0:00:03.3]} 32... Rh2 {[%clk 0:00:02.8]} 33. Rf1 {[%clk 0:00:03.2]} 1-0

[Event "Early-Titled-Tuesday-Blitz-March-05-2024"]
[Site "Chess.com"]
[Date "2024.03.05"]
[Round "11"]
[White "HajiyevKanan"]
[Black "Zq1"]
[Result "1-0"]
[WhiteElo "2534"]
[BlackElo "2626"]
[TimeControl "180+1"]
[EndTime "10:09:33 PST"]
[Termination "HajiyevKanan won on time"]

1. d4 {[%clk 0:03:00.9]} 1... Nf6 {[%clk 0:02:59.2]} 2. Nf3 {[%clk 0:03:01.6]}
2... e6 {[%clk 0:02:58.8]} 3. c4 {[%clk 0:03:02.3]} 3... a6 {[%clk 0:02:58.4]}
4. Nc3 {[%clk 0:03:01.9]} 4... c5 {[%clk 0:02:58.4]} 5. e3 {[%clk 0:03:01.3]}
5... d5 {[%clk 0:02:57.4]} 6. cxd5 {[%clk 0:03:01.4]} 6... exd5 {[%clk
0:02:56.9]} 7. Be2 {[%clk 0:02:59.9]} 7... c4 {[%clk 0:02:56.8]} 8. O-O {[%clk
0:03:00.2]} 8... b5 {[%clk 0:02:56.8]} 9. Ne5 {[%clk 0:02:59.1]} 9... Bb7 {[%clk
0:02:56.5]} 10. f4 {[%clk 0:02:59.4]} 10... Bd6 {[%clk 0:02:53.6]} 11. Bf3
{[%clk 0:02:59.7]} 11... Nbd7 {[%clk 0:02:51.8]} 12. b3 {[%clk 0:02:59.6]} 12...
Qc8 {[%clk 0:02:41.7]} 13. bxc4 {[%clk 0:02:56.7]} 13... dxc4 {[%clk 0:02:41.2]}
14. a3 {[%clk 0:02:18.7]} 14... O-O {[%clk 0:02:35.3]} 15. e4 {[%clk 0:02:10.6]}
15... Nb6 {[%clk 0:02:32.6]} 16. d5 {[%clk 0:02:03]} 16... Bxe5 {[%clk
0:02:13.8]} 17. fxe5 {[%clk 0:02:02]} 17... Nfd7 {[%clk 0:02:13.9]} 18. Bf4
{[%clk 0:01:58.3]} 18... Re8 {[%clk 0:02:12.8]} 19. Qd4 {[%clk 0:01:53.2]} 19...
Qc7 {[%clk 0:01:52.7]} 20. e6 {[%clk 0:01:48.2]} 20... Qc5 {[%clk 0:01:32.9]}
21. Qxc5 {[%clk 0:01:33.7]} 21... Nxc5 {[%clk 0:01:32.4]} 22. exf7+ {[%clk
0:01:28]} 22... Kxf7 {[%clk 0:01:32.3]} 23. Be3 {[%clk 0:01:24.7]} 23... Nbd7
{[%clk 0:01:25.1]} 24. Bh5+ {[%clk 0:01:12.5]} 24... Kg8 {[%clk 0:01:24.8]} 25.
Bf7+ {[%clk 0:01:11.2]} 25... Kh8 {[%clk 0:01:09]} 26. Bxe8 {[%clk 0:01:11.4]}
26... Rxe8 {[%clk 0:01:07.6]} 27. Rf4 {[%clk 0:01:12.3]} 27... Nd3 {[%clk
0:01:02]} 28. Rf7 {[%clk 0:01:09.2]} 28... Bc8 {[%clk 0:01:01.8]} 29. Bd4 {[%clk
0:01:05]} 29... N7e5 {[%clk 0:00:52.1]} 30. Rc7 {[%clk 0:01:01.7]} 30... h6
{[%clk 0:00:33.7]} 31. Rf1 {[%clk 0:01:00.8]} 31... Kg8 {[%clk 0:00:33.3]} 32.
Rf5 {[%clk 0:01:00.9]} 32... Bxf5 {[%clk 0:00:30.8]} 33. exf5 {[%clk 0:01:01.3]}
33... Nf7 {[%clk 0:00:21.6]} 34. g4 {[%clk 0:00:52.7]} 34... Rd8 {[%clk
0:00:20.2]} 35. Ra7 {[%clk 0:00:50.5]} 35... Nf4 {[%clk 0:00:18.9]} 36. Rxa6
{[%clk 0:00:44.9]} 36... Nxd5 {[%clk 0:00:18.6]} 37. Nxb5 {[%clk 0:00:45.4]}
37... Nf4 {[%clk 0:00:16.1]} 38. Kf2 {[%clk 0:00:39.8]} 38... Ng5 {[%clk
0:00:10.6]} 39. h4 {[%clk 0:00:37.4]} 39... Nd3+ {[%clk 0:00:06.5]} 40. Ke3
{[%clk 0:00:33.5]} 40... Re8+ {[%clk 0:00:06.1]} 41. Kd2 {[%clk 0:00:30.9]}
41... Nf3+ {[%clk 0:00:05.8]} 42. Kc3 {[%clk 0:00:31.5]} 42... Nxd4 {[%clk
0:00:05.4]} 43. Nxd4 {[%clk 0:00:32.1]} 43... Ne5 {[%clk 0:00:05.2]} 44. g5
{[%clk 0:00:31.2]} 44... hxg5 {[%clk 0:00:04.8]} 45. hxg5 {[%clk 0:00:32.1]}
45... Rb8 {[%clk 0:00:04.4]} 46. Ra7 {[%clk 0:00:31.4]} 46... g6 {[%clk
0:00:04.1]} 47. f6 {[%clk 0:00:29.1]} 47... Rb1 {[%clk 0:00:02.7]} 48. Ra8+
{[%clk 0:00:23.9]} 48... Kf7 {[%clk 0:00:02.1]} 49. Ra7+ {[%clk 0:00:24.7]} 1-0

[Event "Early-Titled-Tuesday-Blitz-March-05-2024"]
[Site "Chess.com"]
[Date "2024.03.05"]
[Round "11"]
[White "noblerone"]
[Black "carloseduar100"]
[Result "1-0"]
[WhiteElo "2505"]
[BlackElo "2374"]
[TimeControl "180+1"]
[EndTime "10:09:34 PST"]
[Termination "noblerone won by checkmate"]

1. d4 {[%clk 0:02:52.3]} 1... d5 {[%clk 0:02:46.4]} 2. Nf3 {[%clk 0:02:52.5]}
2... Nf6 {[%clk 0:02:44.4]} 3. Bg5 {[%clk 0:02:52.9]} 3... g6 {[%clk 0:02:45.3]}
4. Bxf6 {[%clk 0:02:52.3]} 4... exf6 {[%clk 0:02:46.2]} 5. e3 {[%clk 0:02:47.5]}
5... Bg7 {[%clk 0:02:47.1]} 6. Be2 {[%clk 0:02:46.9]} 6... O-O {[%clk 0:02:48]}
7. O-O {[%clk 0:02:47.5]} 7... Re8 {[%clk 0:02:48.4]} 8. c4 {[%clk 0:02:47.7]}
8... f5 {[%clk 0:02:46.5]} 9. cxd5 {[%clk 0:02:44.8]} 9... Qxd5 {[%clk
0:02:46.2]} 10. Nc3 {[%clk 0:02:45.2]} 10... Qa5 {[%clk 0:02:44.5]} 11. Bc4
{[%clk 0:02:28.7]} 11... c6 {[%clk 0:02:33.4]} 12. Ng5 {[%clk 0:02:23.2]} 12...
Re7 {[%clk 0:02:33.5]} 13. Qb3 {[%clk 0:02:20.4]} 13... Qc7 {[%clk 0:02:33.8]}
14. Rac1 {[%clk 0:02:19]} 14... h6 {[%clk 0:02:31.7]} 15. Nb5 {[%clk 0:01:59.2]}
15... cxb5 {[%clk 0:01:38.6]} 16. Bxf7+ {[%clk 0:01:57.6]} 16... Kh8 {[%clk
0:01:38.7]} 17. Rxc7 {[%clk 0:01:57]} 17... Rxc7 {[%clk 0:01:39.6]} 18. Nf3
{[%clk 0:01:31.7]} 18... g5 {[%clk 0:01:28.8]} 19. Ne5 {[%clk 0:01:24.2]} 19...
Nc6 {[%clk 0:01:23.4]} 20. Nxc6 {[%clk 0:00:50.2]} 20... bxc6 {[%clk 0:01:23.3]}
21. Be6 {[%clk 0:00:49.3]} 21... Re7 {[%clk 0:01:04]} 22. Bxc8 {[%clk
0:00:47.1]} 22... Rxc8 {[%clk 0:01:04.9]} 23. Rc1 {[%clk 0:00:46.2]} 23... f4
{[%clk 0:00:58]} 24. g3 {[%clk 0:00:38.9]} 24... fxe3 {[%clk 0:00:56.4]} 25.
fxe3 {[%clk 0:00:38.7]} 25... Rce8 {[%clk 0:00:53.4]} 26. Rc3 {[%clk 0:00:29.6]}
26... Rxe3 {[%clk 0:00:48.4]} 27. Rxe3 {[%clk 0:00:28.1]} 27... Bxd4 {[%clk
0:00:48.5]} 28. Kg2 {[%clk 0:00:17.1]} 28... Bxe3 {[%clk 0:00:46.5]} 29. Qf7
{[%clk 0:00:16.9]} 29... Rg8 {[%clk 0:00:28.8]} 30. Qf6+ {[%clk 0:00:16.5]}
30... Rg7 {[%clk 0:00:24.1]} 31. Qxh6+ {[%clk 0:00:16.2]} 31... Kg8 {[%clk
0:00:24.3]} 32. Qe6+ {[%clk 0:00:16.6]} 32... Kh7 {[%clk 0:00:23.8]} 33. Qxe3
{[%clk 0:00:17.1]} 33... Rg6 {[%clk 0:00:19.5]} 34. Qe7+ {[%clk 0:00:16.7]}
34... Kh6 {[%clk 0:00:17.7]} 35. Qxa7 {[%clk 0:00:16.5]} 35... Re6 {[%clk
0:00:17.7]} 36. Qf2 {[%clk 0:00:16.1]} 36... Kg6 {[%clk 0:00:13.9]} 37. h4
{[%clk 0:00:15.6]} 37... gxh4 {[%clk 0:00:12.8]} 38. gxh4 {[%clk 0:00:16.5]}
38... Rf6 {[%clk 0:00:13]} 39. Qc2+ {[%clk 0:00:16.1]} 39... Kh5 {[%clk
0:00:13.2]} 40. Kg3 {[%clk 0:00:16.1]} 40... Rg6+ {[%clk 0:00:13.5]} 41. Kh3
{[%clk 0:00:15.9]} 41... Rf6 {[%clk 0:00:13.8]} 42. Qe2+ {[%clk 0:00:15.4]}
42... Kh6 {[%clk 0:00:13.8]} 43. Qe3+ {[%clk 0:00:15.4]} 43... Kg6 {[%clk
0:00:14]} 44. Qe4+ {[%clk 0:00:15.6]} 44... Kh5 {[%clk 0:00:12.6]} 45. Qh7+
{[%clk 0:00:15.3]} 45... Rh6 {[%clk 0:00:11.5]} 46. Qf5# {[%clk 0:00:15.8]} 1-0

[Event "Early-Titled-Tuesday-Blitz-March-05-2024"]
[Site "Chess.com"]
[Date "2024.03.05"]
[Round "11"]
[White "DKmirl"]
[Black "JaackCamel"]
[Result "1-0"]
[WhiteElo "2316"]
[BlackElo "2212"]
[TimeControl "180+1"]
[EndTime "10:09:34 PST"]
[Termination "DKmirl won by resignation"]

1. d4 {[%clk 0:03:00.9]} 1... d5 {[%clk 0:02:57.8]} 2. Nf3 {[%clk 0:03:01.5]}
2... e6 {[%clk 0:02:55.5]} 3. g3 {[%clk 0:03:02.2]} 3... c5 {[%clk 0:02:54.4]}
4. Bg2 {[%clk 0:03:02.8]} 4... Nf6 {[%clk 0:02:50.7]} 5. O-O {[%clk 0:03:03.3]}
5... Nc6 {[%clk 0:02:50.1]} 6. c4 {[%clk 0:03:03.4]} 6... dxc4 {[%clk
0:02:48.6]} 7. dxc5 {[%clk 0:03:03.1]} 7... Bxc5 {[%clk 0:02:43.2]} 8. Qxd8+
{[%clk 0:02:54.9]} 8... Kxd8 {[%clk 0:02:39.9]} 9. Nfd2 {[%clk 0:02:55.5]} 9...
Na5 {[%clk 0:02:27.9]} 10. Rd1 {[%clk 0:02:54.6]} 10... Ke7 {[%clk 0:02:26.8]}
11. Ne4 {[%clk 0:02:54.8]} 11... Nxe4 {[%clk 0:02:18.8]} 12. Bxe4 {[%clk
0:02:54.7]} 12... Bd7 {[%clk 0:02:08.9]} 13. Bd2 {[%clk 0:02:52.4]} 13... Bc6
{[%clk 0:02:04.9]} 14. Bc2 {[%clk 0:02:27.9]} 14... b6 {[%clk 0:01:37.8]} 15.
Bc3 {[%clk 0:02:20.2]} 15... f6 {[%clk 0:01:35.6]} 16. Nd2 {[%clk 0:02:20.9]}
16... Nb7 {[%clk 0:01:22.1]} 17. Nxc4 {[%clk 0:02:19.6]} 17... Rad8 {[%clk
0:01:19.3]} 18. b4 {[%clk 0:02:10.3]} 18... Bd6 {[%clk 0:01:13.3]} 19. Nxd6
{[%clk 0:01:49.1]} 19... Rxd6 {[%clk 0:01:10.7]} 20. a4 {[%clk 0:01:46.3]} 20...
Rhd8 {[%clk 0:01:06.1]} 21. b5 {[%clk 0:01:43.2]} 21... Bd5 {[%clk 0:01:05]} 22.
e4 {[%clk 0:01:35.7]} 22... Bc4 {[%clk 0:00:57.8]} 23. e5 {[%clk 0:01:20.1]}
23... Rxd1+ {[%clk 0:00:52.9]} 24. Rxd1 {[%clk 0:00:58.6]} 24... Rxd1+ {[%clk
0:00:52.1]} 25. Bxd1 {[%clk 0:00:58.4]} 25... Nc5 {[%clk 0:00:52.3]} 26. exf6+
{[%clk 0:00:45.4]} 26... gxf6 {[%clk 0:00:51.4]} 27. Bc2 {[%clk 0:00:46.1]}
27... h6 {[%clk 0:00:44.9]} 28. Bd2 {[%clk 0:00:44]} 28... h5 {[%clk 0:00:41.7]}
29. f3 {[%clk 0:00:41.2]} 29... Bb3 {[%clk 0:00:36.7]} 30. Bxb3 {[%clk 0:00:38]}
30... Nxb3 {[%clk 0:00:36.6]} 31. Be3 {[%clk 0:00:31.8]} 31... e5 {[%clk
0:00:28]} 32. g4 {[%clk 0:00:31.3]} 32... hxg4 {[%clk 0:00:20]} 33. fxg4 {[%clk
0:00:30.3]} 33... Kf7 {[%clk 0:00:18.3]} 34. h4 {[%clk 0:00:30.2]} 34... Kg6
{[%clk 0:00:18.5]} 35. h5+ {[%clk 0:00:29.8]} 35... Kg7 {[%clk 0:00:17.7]} 36.
Kf1 {[%clk 0:00:28.7]} 36... Na1 {[%clk 0:00:17.8]} 37. a5 {[%clk 0:00:20.5]}
37... Nc2 {[%clk 0:00:15.5]} 38. axb6 {[%clk 0:00:09.4]} 38... Nxe3+ {[%clk
0:00:15.4]} 39. Ke2 {[%clk 0:00:09.4]} 39... axb6 {[%clk 0:00:13.9]} 40. Kxe3
{[%clk 0:00:09.6]} 40... f5 {[%clk 0:00:14]} 41. gxf5 {[%clk 0:00:09.1]} 41...
Kf6 {[%clk 0:00:12.5]} 42. Ke4 {[%clk 0:00:09.3]} 1-0

[Event "Early-Titled-Tuesday-Blitz-March-05-2024"]
[Site "Chess.com"]
[Date "2024.03.05"]
[Round "11"]
[White "campochess"]
[Black "Matols"]
[Result "1-0"]
[WhiteElo "2244"]
[BlackElo "2369"]
[TimeControl "180+1"]
[EndTime "10:09:36 PST"]
[Termination "campochess won on time"]

1. e4 {[%clk 0:02:51.4]} 1... c6 {[%clk 0:02:59.5]} 2. d3 {[%clk 0:02:48.9]}
2... d5 {[%clk 0:02:59.6]} 3. Nd2 {[%clk 0:02:49]} 3... e5 {[%clk 0:02:59.1]} 4.
Ngf3 {[%clk 0:02:47.2]} 4... Bd6 {[%clk 0:02:58.3]} 5. c4 {[%clk 0:02:44.3]}
5... Nf6 {[%clk 0:02:53.7]} 6. Be2 {[%clk 0:02:41.6]} 6... O-O {[%clk
0:02:52.3]} 7. O-O {[%clk 0:02:41.2]} 7... dxe4 {[%clk 0:02:44.4]} 8. Nxe4
{[%clk 0:02:39.6]} 8... Nxe4 {[%clk 0:02:43.4]} 9. dxe4 {[%clk 0:02:39.7]} 9...
Bc7 {[%clk 0:02:42.8]} 10. Qc2 {[%clk 0:02:37.9]} 10... Nd7 {[%clk 0:02:38.8]}
11. Bg5 {[%clk 0:02:36.9]} 11... f6 {[%clk 0:02:37.6]} 12. Be3 {[%clk
0:02:35.2]} 12... Qe7 {[%clk 0:02:36.9]} 13. c5 {[%clk 0:02:34.1]} 13... Rd8
{[%clk 0:02:32]} 14. Rad1 {[%clk 0:02:32.5]} 14... Nf8 {[%clk 0:02:29.3]} 15.
Rxd8 {[%clk 0:02:29.3]} 15... Bxd8 {[%clk 0:02:30.2]} 16. Rd1 {[%clk 0:02:28.2]}
16... Be6 {[%clk 0:02:28.4]} 17. Bc4 {[%clk 0:02:25.6]} 17... Bc7 {[%clk
0:02:27.4]} 18. Nh4 {[%clk 0:02:18.2]} 18... g6 {[%clk 0:02:18.3]} 19. Nf3
{[%clk 0:02:13.7]} 19... Rd8 {[%clk 0:02:16.1]} 20. Rxd8 {[%clk 0:02:10.6]}
20... Qxd8 {[%clk 0:02:17]} 21. h3 {[%clk 0:02:05.4]} 21... Kg7 {[%clk
0:02:05.6]} 22. Nd2 {[%clk 0:02:02.9]} 22... Qd7 {[%clk 0:01:55.8]} 23. Kh2
{[%clk 0:01:50.1]} 23... Bxc4 {[%clk 0:01:49.1]} 24. Nxc4 {[%clk 0:01:45]} 24...
Ne6 {[%clk 0:01:48.8]} 25. Nd6 {[%clk 0:01:32.5]} 25... Bxd6 {[%clk 0:01:46.5]}
26. Qd3 {[%clk 0:01:31.7]} 26... Nd4 {[%clk 0:01:37.2]} 27. cxd6 {[%clk
0:01:30.9]} 27... Qxd6 {[%clk 0:01:35.6]} 28. Qc4 {[%clk 0:01:28.6]} 28... c5
{[%clk 0:01:30]} 29. Qa4 {[%clk 0:01:23.7]} 29... a6 {[%clk 0:01:23.4]} 30. Qe8
{[%clk 0:01:22.4]} 30... Qc7 {[%clk 0:00:41.2]} 31. h4 {[%clk 0:01:10.2]} 31...
h5 {[%clk 0:00:33.6]} 32. f3 {[%clk 0:00:47.9]} 32... c4 {[%clk 0:00:30.1]} 33.
Qa4 {[%clk 0:00:44.4]} 33... Kf7 {[%clk 0:00:16.3]} 34. Bh6 {[%clk 0:00:37.5]}
34... Ne6 {[%clk 0:00:14.5]} 35. Qb4 {[%clk 0:00:28.8]} 35... b5 {[%clk
0:00:12.3]} 36. a4 {[%clk 0:00:26.7]} 36... Qd7 {[%clk 0:00:11.9]} 37. axb5
{[%clk 0:00:17.6]} 37... axb5 {[%clk 0:00:12.8]} 38. Qa3 {[%clk 0:00:17.3]}
38... Qe7 {[%clk 0:00:04.5]} 39. Qa8 {[%clk 0:00:16.4]} 39... Nc5 {[%clk
0:00:02.1]} 40. Qh8 {[%clk 0:00:16]} 40... Ke6 {[%clk 0:00:01.4]} 41. Qg8+
{[%clk 0:00:15.4]} 41... Kd7 {[%clk 0:00:01.2]} 42. Qxg6 {[%clk 0:00:15.2]} 1-0